[Event "Titled Tuesday Blitz June 13 Early 2023"]
[White "Bilan, Danila"]
[Black "Bashkansky, Ethan"]
[WhiteFideId "24161918"]
[BlackFideId "2071533"]
[WhiteElo "2146"]
[BlackElo "2336"]
[Result "1-0"]
[Round "10"]
[TimeControl "180+2"]
[Date "2023.06.13"]
[WhiteClock "0:00:15"]
[BlackClock "0:00:13"]
[Board "111"]

1. d4 {[%clk 0:03:00]}  f5 {[%clk 0:02:26]} 2. Nf3 {[%clk 0:02:58]}  Nf6 {[%clk 0:02:26]} 3. g3 {[%clk 0:02:58]}  g6 {[%clk 0:02:26]} 4. Bg2 {[%clk 0:02:58]}  Bg7 {[%clk 0:02:27]} 5. O-O {[%clk 0:02:59]}  O-O {[%clk 0:02:27]} 6. c4 {[%clk 0:03:00]}  d6 {[%clk 0:02:28]} 7. Nc3 {[%clk 0:03:00]}  Nc6 {[%clk 0:02:29]} 8. d5 {[%clk 0:03:00]}  Na5 {[%clk 0:02:29]} 9. Nd2 {[%clk 0:03:00]}  c5 {[%clk 0:02:29]} 10. Qc2 {[%clk 0:02:58]}  a6 {[%clk 0:02:29]} 11. b3 {[%clk 0:02:55]}  Rb8 {[%clk 0:02:27]} 12. Bb2 {[%clk 0:02:55]}  b5 {[%clk 0:02:28]} 13. Rab1 {[%clk 0:02:53]}  e5 {[%clk 0:02:16]} 14. dxe6 {[%clk 0:02:47]}  bxc4 {[%clk 0:02:12]} 15. bxc4 {[%clk 0:01:52]}  Bxe6 {[%clk 0:02:11]} 16. Nd5 {[%clk 0:01:36]}  Nxd5 {[%clk 0:02:05]} 17. cxd5 {[%clk 0:01:29]}  Bf7 {[%clk 0:01:47]} 18. Bxg7 {[%clk 0:01:26]}  Rxb1 {[%clk 0:01:41]} 19. Qc3 {[%clk 0:00:51]}  Rxf1+ {[%clk 0:01:31]} 20. Kxf1 {[%clk 0:00:44]}  Qc7 {[%clk 0:00:39]} 21. Bh6 {[%clk 0:00:22]}  Be8 {[%clk 0:00:37]} 22. Bxf8 {[%clk 0:00:22]}  Kxf8 {[%clk 0:00:37]} 23. Qh8+ {[%clk 0:00:23]}  Ke7 {[%clk 0:00:36]} 24. Qxh7+ {[%clk 0:00:23]}  Kd8 {[%clk 0:00:37]} 25. Qxc7+ {[%clk 0:00:14]}  Kxc7 {[%clk 0:00:38]} 26. e4 {[%clk 0:00:13]}  Bf7 {[%clk 0:00:25]} 27. Ke2 {[%clk 0:00:11]}  fxe4 {[%clk 0:00:22]} 28. Bxe4 {[%clk 0:00:11]}  Kb6 {[%clk 0:00:21]} 29. Kd3 {[%clk 0:00:06]}  Kb5 {[%clk 0:00:21]} 30. f4 {[%clk 0:00:06]}  Kb4 {[%clk 0:00:15]} 31. g4 {[%clk 0:00:05]}  c4+ {[%clk 0:00:11]} 32. Kc2 {[%clk 0:00:05]}  Nb7 {[%clk 0:00:04]} 33. h4 {[%clk 0:00:05]}  Nc5 {[%clk 0:00:04]} 34. f5 {[%clk 0:00:05]}  Nxe4 {[%clk 0:00:03]} 35. Nxe4 {[%clk 0:00:04]}  gxf5 {[%clk 0:00:02]} 36. gxf5 {[%clk 0:00:04]}  Bxd5 {[%clk 0:00:03]} 37. Nxd6 {[%clk 0:00:05]}  c3 {[%clk 0:00:02]} 38. f6 {[%clk 0:00:05]}  Bxa2 {[%clk 0:00:02]} 39. f7 {[%clk 0:00:05]}  Bxf7 {[%clk 0:00:03]} 40. Nxf7 {[%clk 0:00:06]}  a5 {[%clk 0:00:04]} 41. Ne5 {[%clk 0:00:04]}  a4 {[%clk 0:00:04]} 42. Nd3+ {[%clk 0:00:05]}  Kc4 {[%clk 0:00:04]} 43. Nc1 {[%clk 0:00:05]}  Kd5 {[%clk 0:00:04]} 44. Kxc3 {[%clk 0:00:05]}  Ke4 {[%clk 0:00:04]} 45. Ne2 {[%clk 0:00:05]}  Kf5 {[%clk 0:00:03]} 46. h5 {[%clk 0:00:06]}  Kg5 {[%clk 0:00:04]} 47. Ng3 {[%clk 0:00:06]}  Kh6 {[%clk 0:00:04]} 48. Kb4 {[%clk 0:00:07]}  a3 {[%clk 0:00:05]} 49. Kxa3 {[%clk 0:00:07]}  Kg5 {[%clk 0:00:06]} 50. Kb4 {[%clk 0:00:08]}  Kh6 {[%clk 0:00:07]} 51. Kc4 {[%clk 0:00:08]}  Kg5 {[%clk 0:00:08]} 52. Kd4 {[%clk 0:00:09]}  Kh6 {[%clk 0:00:08]} 53. Ke4 {[%clk 0:00:10]}  Kg5 {[%clk 0:00:09]} 54. Ke5 {[%clk 0:00:10]}  Kh6 {[%clk 0:00:10]} 55. Kf5 {[%clk 0:00:10]}  Kg7 {[%clk 0:00:11]} 56. Kg5 {[%clk 0:00:11]}  Kh7 {[%clk 0:00:12]} 57. h6 {[%clk 0:00:12]}  Kg8 {[%clk 0:00:12]} 58. Kg6 {[%clk 0:00:13]}  Kh8 {[%clk 0:00:13]} 59. Ne4 {[%clk 0:00:13]}  Kg8 {[%clk 0:00:14]} 60. Ng5 {[%clk 0:00:14]}  Kh8 {[%clk 0:00:14]} 61. Nf7+ {[%clk 0:00:14]}  Kg8 {[%clk 0:00:13]} 62. h7+ {[%clk 0:00:15]} 1-0


[Site "https://www.chess.com"]

[Event "Titled Tuesday Blitz June 13 Early 2023"]
[White "Dixit, Nikhil"]
[Black "Novikova, Margarita"]
[WhiteFideId "5059534"]
[BlackFideId "14109689"]
[WhiteElo "2207"]
[BlackElo "2013"]
[Result "1-0"]
[Round "10"]
[TimeControl "180+2"]
[Date "2023.06.13"]
[WhiteClock "0:00:22"]
[BlackClock "0:01:03"]
[Board "117"]

1. e4 {[%clk 0:03:00]}  d5 {[%clk 0:02:54]} 2. exd5 {[%clk 0:02:59]}  Qxd5 {[%clk 0:02:54]} 3. Nc3 {[%clk 0:03:00]}  Qd6 {[%clk 0:02:54]} 4. d4 {[%clk 0:02:57]}  Nf6 {[%clk 0:02:54]} 5. Nf3 {[%clk 0:02:55]}  Bf5 {[%clk 0:02:53]} 6. Bc4 {[%clk 0:02:51]}  c6 {[%clk 0:02:53]} 7. Qe2 {[%clk 0:02:50]}  e6 {[%clk 0:02:52]} 8. h3 {[%clk 0:02:44]}  h6 {[%clk 0:02:50]} 9. Bb3 {[%clk 0:02:35]}  Be7 {[%clk 0:02:49]} 10. g4 {[%clk 0:02:33]}  Bh7 {[%clk 0:02:47]} 11. Be3 {[%clk 0:02:27]}  Nbd7 {[%clk 0:02:46]} 12. O-O-O {[%clk 0:02:14]}  O-O-O {[%clk 0:02:45]} 13. Nd2 {[%clk 0:02:09]}  Nb6 {[%clk 0:02:42]} 14. a4 {[%clk 0:02:03]}  Qb4 {[%clk 0:02:39]} 15. Na2 {[%clk 0:01:27]}  Qd6 {[%clk 0:02:37]} 16. a5 {[%clk 0:01:26]}  Nbd5 {[%clk 0:02:36]} 17. Nc4 {[%clk 0:01:26]}  Qc7 {[%clk 0:02:33]} 18. Nc3 {[%clk 0:01:20]}  Nxc3 {[%clk 0:02:28]} 19. bxc3 {[%clk 0:01:21]}  Nd5 {[%clk 0:02:27]} 20. Kb2 {[%clk 0:01:17]}  Nxe3 {[%clk 0:02:23]} 21. fxe3 {[%clk 0:01:15]}  Be4 {[%clk 0:02:22]} 22. Rhf1 {[%clk 0:01:14]}  Rhf8 {[%clk 0:02:21]} 23. Ra1 {[%clk 0:01:12]}  Bd5 {[%clk 0:02:17]} 24. Ne5 {[%clk 0:01:11]}  Bxb3 {[%clk 0:02:16]} 25. cxb3 {[%clk 0:01:11]}  Bf6 {[%clk 0:02:13]} 26. Nd3 {[%clk 0:01:10]}  e5 {[%clk 0:02:10]} 27. b4 {[%clk 0:01:10]}  exd4 {[%clk 0:02:06]} 28. exd4 {[%clk 0:01:11]}  Rfe8 {[%clk 0:02:05]} 29. Qf3 {[%clk 0:01:10]}  Qd6 {[%clk 0:02:02]} 30. Rae1 {[%clk 0:01:07]}  Rxe1 {[%clk 0:01:59]} 31. Rxe1 {[%clk 0:01:07]}  Bxd4 {[%clk 0:01:59]} 32. Re4 {[%clk 0:00:50]}  Bf6 {[%clk 0:01:50]} 33. Kc2 {[%clk 0:00:48]}  Qh2+ {[%clk 0:01:48]} 34. Kb3 {[%clk 0:00:48]}  Qd6 {[%clk 0:01:48]} 35. Qf5+ {[%clk 0:00:47]}  Qd7 {[%clk 0:01:47]} 36. Qxd7+ {[%clk 0:00:45]}  Rxd7 {[%clk 0:01:48]} 37. Nc5 {[%clk 0:00:45]}  Re7 {[%clk 0:01:46]} 38. Rxe7 {[%clk 0:00:43]}  Bxe7 {[%clk 0:01:47]} 39. Nd3 {[%clk 0:00:42]}  Kd7 {[%clk 0:01:45]} 40. c4 {[%clk 0:00:42]}  Ke6 {[%clk 0:01:45]} 41. a6 {[%clk 0:00:41]}  b6 {[%clk 0:01:44]} 42. b5 {[%clk 0:00:34]}  cxb5 {[%clk 0:01:42]} 43. cxb5 {[%clk 0:00:30]}  Bd6 {[%clk 0:01:37]} 44. Kc4 {[%clk 0:00:29]}  g6 {[%clk 0:01:36]} 45. Kd4 {[%clk 0:00:28]}  f5 {[%clk 0:01:36]} 46. gxf5+ {[%clk 0:00:29]}  gxf5 {[%clk 0:01:34]} 47. Ne1 {[%clk 0:00:29]}  f4 {[%clk 0:01:31]} 48. Nf3 {[%clk 0:00:29]}  Kf5 {[%clk 0:01:30]} 49. Kd5 {[%clk 0:00:29]}  Bb8 {[%clk 0:01:27]} 50. Kc6 {[%clk 0:00:28]}  Ke4 {[%clk 0:01:28]} 51. Nh4 {[%clk 0:00:23]}  f3 {[%clk 0:01:27]} 52. Nxf3 {[%clk 0:00:23]}  Kxf3 {[%clk 0:01:25]} 53. Kb7 {[%clk 0:00:24]}  Be5 {[%clk 0:01:15]} 54. Kxa7 {[%clk 0:00:25]}  Ke4 {[%clk 0:01:03]} 55. Kb7 {[%clk 0:00:22]} 1-0


[Site "https://www.chess.com"]

[Event "Titled Tuesday Blitz June 13 Early 2023"]
[White "Tinmaz, Kerem"]
[Black "Balla, Tamas-Kristof"]
[WhiteFideId "44559151"]
[BlackFideId "1208497"]
[WhiteElo "2153"]
[BlackElo "2334"]
[Result "1-0"]
[Round "10"]
[TimeControl "180+2"]
[Date "2023.06.13"]
[WhiteClock "0:00:32"]
[BlackClock "0:00:17"]
[Board "119"]

1. e4 {[%clk 0:03:00]}  c5 {[%clk 0:02:53]} 2. Nc3 {[%clk 0:03:00]}  Nc6 {[%clk 0:02:53]} 3. Bb5 {[%clk 0:03:00]}  Nd4 {[%clk 0:02:52]} 4. Bc4 {[%clk 0:03:01]}  e6 {[%clk 0:02:52]} 5. Nge2 {[%clk 0:03:01]}  Nf6 {[%clk 0:02:52]} 6. O-O {[%clk 0:03:00]}  a6 {[%clk 0:02:50]} 7. a4 {[%clk 0:03:00]}  d5 {[%clk 0:02:49]} 8. exd5 {[%clk 0:03:01]}  exd5 {[%clk 0:02:50]} 9. Ba2 {[%clk 0:03:01]}  Be6 {[%clk 0:02:41]} 10. d3 {[%clk 0:03:00]}  Nxe2+ {[%clk 0:02:37]} 11. Qxe2 {[%clk 0:02:58]}  Bd6 {[%clk 0:02:35]} 12. Bg5 {[%clk 0:02:42]}  O-O {[%clk 0:02:14]} 13. Bxf6 {[%clk 0:02:37]}  Qxf6 {[%clk 0:02:08]} 14. Bxd5 {[%clk 0:02:30]}  Qh6 {[%clk 0:02:02]} 15. g3 {[%clk 0:02:22]}  Rfe8 {[%clk 0:02:01]} 16. Bxe6 {[%clk 0:02:17]}  Rxe6 {[%clk 0:02:01]} 17. Qf3 {[%clk 0:02:18]}  Rae8 {[%clk 0:01:47]} 18. Qxb7 {[%clk 0:02:02]}  Qd2 {[%clk 0:01:35]} 19. Rac1 {[%clk 0:01:38]}  Be5 {[%clk 0:01:20]} 20. Ne4 {[%clk 0:01:31]}  Qh6 {[%clk 0:01:16]} 21. Qd5 {[%clk 0:01:07]}  Bd4 {[%clk 0:01:13]} 22. c3 {[%clk 0:01:03]}  Re5 {[%clk 0:01:13]} 23. Qd6 {[%clk 0:00:56]}  R5e6 {[%clk 0:01:08]} 24. Qf4 {[%clk 0:00:49]}  Qh3 {[%clk 0:00:57]} 25. Ng5 {[%clk 0:00:35]}  Bxf2+ {[%clk 0:00:17]} 26. Qxf2 {[%clk 0:00:32]} 1-0


[Site "https://www.chess.com"]

[Event "Titled Tuesday Blitz June 13 Early 2023"]
[White "Mayaud, Raphael"]
[Black "KorolDimitriy75"]
[WhiteFideId "627151"]
[WhiteElo "2191"]
[BlackElo "2428"]
[Result "0-1"]
[Round "10"]
[TimeControl "180+2"]
[Date "2023.06.13"]
[WhiteClock "0:00:00"]
[BlackClock "0:00:55"]
[Board "122"]

1. d4 {[%clk 0:03:00]}  Nf6 {[%clk 0:02:59]} 2. Bg5 {[%clk 0:03:00]}  Ne4 {[%clk 0:02:59]} 3. Bf4 {[%clk 0:03:01]}  c5 {[%clk 0:02:59]} 4. f3 {[%clk 0:03:00]}  Nf6 {[%clk 0:02:58]} 5. dxc5 {[%clk 0:03:00]}  Qa5+ {[%clk 0:02:58]} 6. Nc3 {[%clk 0:03:00]}  Qxc5 {[%clk 0:02:58]} 7. e4 {[%clk 0:03:01]}  d6 {[%clk 0:02:56]} 8. Qd2 {[%clk 0:03:01]}  Nc6 {[%clk 0:02:51]} 9. O-O-O {[%clk 0:02:55]}  g6 {[%clk 0:02:44]} 10. g4 {[%clk 0:02:54]}  Bg7 {[%clk 0:02:44]} 11. Bh6 {[%clk 0:02:40]}  O-O {[%clk 0:02:42]} 12. h4 {[%clk 0:02:39]}  Be6 {[%clk 0:02:38]} 13. h5 {[%clk 0:02:33]}  Rac8 {[%clk 0:02:19]} 14. Bxg7 {[%clk 0:01:49]}  Kxg7 {[%clk 0:02:20]} 15. hxg6 {[%clk 0:01:23]}  fxg6 {[%clk 0:02:18]} 16. Qh6+ {[%clk 0:01:20]}  Kf7 {[%clk 0:01:41]} 17. g5 {[%clk 0:00:58]}  Ng8 {[%clk 0:01:26]} 18. Qxh7+ {[%clk 0:00:51]}  Ke8 {[%clk 0:01:26]} 19. Qxg6+ {[%clk 0:00:52]}  Kd7 {[%clk 0:01:25]} 20. Bh3 {[%clk 0:00:32]}  Bxh3 {[%clk 0:01:21]} 21. Rxh3 {[%clk 0:00:29]}  Ne5 {[%clk 0:01:16]} 22. Qh5 {[%clk 0:00:20]}  Nc4 {[%clk 0:01:15]} 23. Nge2 {[%clk 0:00:18]}  Qb4 {[%clk 0:01:13]} 24. Qg4+ {[%clk 0:00:18]}  Kd8 {[%clk 0:01:08]} 25. Rd3 {[%clk 0:00:08]}  Qxb2+ {[%clk 0:01:07]} 26. Kd1 {[%clk 0:00:09]}  Qa1+ {[%clk 0:01:05]} 27. Nc1 {[%clk 0:00:09]}  Nb2+ {[%clk 0:01:04]} 28. Kd2 {[%clk 0:00:09]}  Nxd3 {[%clk 0:01:04]} 29. Nxd3 {[%clk 0:00:06]}  Qxc3+ {[%clk 0:01:04]} 30. Ke3 {[%clk 0:00:06]}  Qxc2 {[%clk 0:01:02]} 31. Qe6 {[%clk 0:00:06]}  Qc7 {[%clk 0:00:56]} 32. Rh8 {[%clk 0:00:05]}  Qd7 {[%clk 0:00:56]} 33. Qb3 {[%clk 0:00:00]}  Kc7 {[%clk 0:00:55]} 0-1


[Site "https://www.chess.com"]

[Event "Titled Tuesday Blitz June 13 Early 2023"]
[White "Samaganova, Aleksandra"]
[Black "Grossboss19"]
[WhiteFideId "13800221"]
[WhiteElo "1858"]
[BlackElo "2413"]
[Result "1-0"]
[Round "10"]
[TimeControl "180+2"]
[Date "2023.06.13"]
[WhiteClock "0:00:23"]
[BlackClock "0:00:00"]
[Board "125"]

1. c4 {[%clk 0:03:00]}  e6 {[%clk 0:01:39]} 2. Nc3 {[%clk 0:02:59]}  Nf6 {[%clk 0:01:38]} 3. e4 {[%clk 0:02:58]}  Nc6 {[%clk 0:01:38]} 4. Nf3 {[%clk 0:02:50]}  Bb4 {[%clk 0:01:37]} 5. e5 {[%clk 0:02:42]}  Ng8 {[%clk 0:01:37]} 6. d4 {[%clk 0:02:39]}  d6 {[%clk 0:01:36]} 7. exd6 {[%clk 0:02:39]}  cxd6 {[%clk 0:01:31]} 8. d5 {[%clk 0:02:37]}  Nce7 {[%clk 0:01:30]} 9. Qa4+ {[%clk 0:02:35]}  Nc6 {[%clk 0:00:50]} 10. dxc6 {[%clk 0:02:32]}  Bxc3+ {[%clk 0:00:49]} 11. bxc3 {[%clk 0:02:33]}  b6 {[%clk 0:00:46]} 12. c5 {[%clk 0:02:20]}  bxc5 {[%clk 0:00:38]} 13. c7+ {[%clk 0:02:16]}  Qd7 {[%clk 0:00:16]} 14. Bb5 {[%clk 0:02:15]}  Ne7 {[%clk 0:00:17]} 15. Bxd7+ {[%clk 0:02:09]}  Bxd7 {[%clk 0:00:17]} 16. Qa6 {[%clk 0:01:58]}  Nc8 {[%clk 0:00:17]} 17. O-O {[%clk 0:01:43]}  Ke7 {[%clk 0:00:13]} 18. Rb1 {[%clk 0:01:42]}  Nb6 {[%clk 0:00:10]} 19. Re1 {[%clk 0:01:34]}  Rhc8 {[%clk 0:00:08]} 20. Bf4 {[%clk 0:01:25]}  f6 {[%clk 0:00:05]} 21. Rbd1 {[%clk 0:01:15]}  e5 {[%clk 0:00:05]} 22. Qd3 {[%clk 0:01:05]}  d5 {[%clk 0:00:02]} 23. Qxh7 {[%clk 0:01:00]}  Kf7 {[%clk 0:00:02]} 24. Qh5+ {[%clk 0:00:52]}  Kg8 {[%clk 0:00:02]} 25. Bxe5 {[%clk 0:00:49]}  fxe5 {[%clk 0:00:01]} 26. Nxe5 {[%clk 0:00:49]}  Be8 {[%clk 0:00:01]} 27. Qf3 {[%clk 0:00:39]}  Rxc7 {[%clk 0:00:00]} 28. Nd3 {[%clk 0:00:23]} 1-0


[Site "https://www.chess.com"]

[Event "Titled Tuesday Blitz June 13 Early 2023"]
[White "Srdanovic, Jovana"]
[Black "Shapiro, Daniel"]
[WhiteFideId "954810"]
[BlackFideId "2001780"]
[WhiteElo "2155"]
[BlackElo "2343"]
[Result "1-0"]
[Round "10"]
[TimeControl "180+2"]
[Date "2023.06.13"]
[WhiteClock "0:00:25"]
[BlackClock "0:00:07"]
[Board "129"]

1. e4 {[%clk 0:02:57]}  c5 {[%clk 0:02:59]} 2. Nf3 {[%clk 0:02:56]}  e6 {[%clk 0:02:59]} 3. d4 {[%clk 0:02:56]}  cxd4 {[%clk 0:02:59]} 4. Nxd4 {[%clk 0:02:56]}  a6 {[%clk 0:03:00]} 5. Nc3 {[%clk 0:02:56]}  Qc7 {[%clk 0:02:58]} 6. f4 {[%clk 0:02:50]}  Bb4 {[%clk 0:02:46]} 7. Bd2 {[%clk 0:02:48]}  Nf6 {[%clk 0:02:40]} 8. Bd3 {[%clk 0:02:30]}  d6 {[%clk 0:02:31]} 9. Qf3 {[%clk 0:02:15]}  Nbd7 {[%clk 0:02:22]} 10. g4 {[%clk 0:02:12]}  h6 {[%clk 0:02:17]} 11. O-O-O {[%clk 0:02:09]}  Bc5 {[%clk 0:02:12]} 12. Nb3 {[%clk 0:02:04]}  Ba7 {[%clk 0:02:12]} 13. e5 {[%clk 0:01:27]}  dxe5 {[%clk 0:02:00]} 14. g5 {[%clk 0:01:28]}  e4 {[%clk 0:01:13]} 15. Bxe4 {[%clk 0:01:18]}  Nxe4 {[%clk 0:01:10]} 16. Nxe4 {[%clk 0:01:19]}  h5 {[%clk 0:00:37]} 17. Bc3 {[%clk 0:01:17]}  Kf8 {[%clk 0:00:31]} 18. Rhf1 {[%clk 0:00:46]}  Rb8 {[%clk 0:00:27]} 19. f5 {[%clk 0:00:46]}  e5 {[%clk 0:00:28]} 20. g6 {[%clk 0:00:36]}  b5 {[%clk 0:00:25]} 21. f6 {[%clk 0:00:33]}  Nxf6 {[%clk 0:00:21]} 22. Nxf6 {[%clk 0:00:32]}  gxf6 {[%clk 0:00:21]} 23. Qxf6 {[%clk 0:00:32]}  Be3+ {[%clk 0:00:20]} 24. Kb1 {[%clk 0:00:32]}  Rg8 {[%clk 0:00:07]} 25. Rd8+ {[%clk 0:00:25]} 1-0


[Site "https://www.chess.com"]

[Event "Titled Tuesday Blitz June 13 Early 2023"]
[White "Jiganchine, Roman"]
[Black "Tokman, Ariel"]
[WhiteFideId "2603667"]
[BlackFideId "117420"]
[WhiteElo "2312"]
[BlackElo "2263"]
[Result "1-0"]
[Round "10"]
[TimeControl "180+2"]
[Date "2023.06.13"]
[WhiteClock "0:00:53"]
[BlackClock "0:00:00"]
[Board "131"]

1. e4 {[%clk 0:02:59]}  c5 {[%clk 0:02:58]} 2. Nf3 {[%clk 0:02:59]}  e6 {[%clk 0:02:58]} 3. g3 {[%clk 0:02:58]}  Nf6 {[%clk 0:02:54]} 4. d3 {[%clk 0:02:49]}  d5 {[%clk 0:02:54]} 5. e5 {[%clk 0:02:40]}  Nfd7 {[%clk 0:02:54]} 6. h4 {[%clk 0:02:38]}  Nc6 {[%clk 0:02:55]} 7. Bf4 {[%clk 0:02:38]}  Be7 {[%clk 0:02:52]} 8. Bg2 {[%clk 0:02:37]}  Qc7 {[%clk 0:02:52]} 9. Qe2 {[%clk 0:02:36]}  b5 {[%clk 0:02:53]} 10. O-O {[%clk 0:02:30]}  Bb7 {[%clk 0:02:52]} 11. c4 {[%clk 0:02:29]}  bxc4 {[%clk 0:02:28]} 12. dxc4 {[%clk 0:02:29]}  dxc4 {[%clk 0:02:28]} 13. Nbd2 {[%clk 0:02:14]}  O-O {[%clk 0:02:25]} 14. Nxc4 {[%clk 0:02:12]}  Nb6 {[%clk 0:02:10]} 15. Nd6 {[%clk 0:02:05]}  Nd5 {[%clk 0:02:08]} 16. Nxb7 {[%clk 0:02:02]}  Nxf4 {[%clk 0:02:08]} 17. gxf4 {[%clk 0:02:02]}  Qxb7 {[%clk 0:02:08]} 18. Ng5 {[%clk 0:01:58]}  g6 {[%clk 0:02:01]} 19. Qf3 {[%clk 0:01:53]}  Rac8 {[%clk 0:01:45]} 20. h5 {[%clk 0:01:47]}  Qb4 {[%clk 0:01:33]} 21. Ne4 {[%clk 0:01:40]}  Nd4 {[%clk 0:01:29]} 22. Qh3 {[%clk 0:01:38]}  Ne2+ {[%clk 0:01:25]} 23. Kh1 {[%clk 0:01:37]}  Nxf4 {[%clk 0:01:25]} 24. Qg4 {[%clk 0:01:31]}  Nxg2 {[%clk 0:01:21]} 25. Kxg2 {[%clk 0:01:27]}  g5 {[%clk 0:00:37]} 26. h6 {[%clk 0:01:23]}  Kh8 {[%clk 0:00:35]} 27. Rad1 {[%clk 0:01:20]}  Rg8 {[%clk 0:00:25]} 28. Rd7 {[%clk 0:01:18]}  Rce8 {[%clk 0:00:25]} 29. Qf3 {[%clk 0:01:16]}  g4 {[%clk 0:00:20]} 30. Qf4 {[%clk 0:01:15]}  Rg6 {[%clk 0:00:05]} 31. Rfd1 {[%clk 0:01:12]}  Kg8 {[%clk 0:00:03]} 32. b3 {[%clk 0:01:08]}  a5 {[%clk 0:00:00]} 33. Rxe7 {[%clk 0:00:53]} 1-0


[Site "https://www.chess.com"]

[Event "Titled Tuesday Blitz June 13 Early 2023"]
[White "Lopez, Nelson M, Ii"]
[Black "Zaksaite, Salomeja"]
[WhiteFideId "2027895"]
[BlackFideId "12801496"]
[WhiteElo "2437"]
[BlackElo "2059"]
[Result "1-0"]
[Round "10"]
[TimeControl "180+2"]
[Date "2023.06.13"]
[WhiteClock "0:00:05"]
[BlackClock "0:00:00"]
[Board "132"]

1. e4 {[%clk 0:03:00]}  e5 {[%clk 0:02:57]} 2. Bc4 {[%clk 0:03:00]}  Nf6 {[%clk 0:02:56]} 3. d4 {[%clk 0:03:00]}  exd4 {[%clk 0:02:44]} 4. Nf3 {[%clk 0:03:00]}  Nc6 {[%clk 0:02:34]} 5. O-O {[%clk 0:03:00]}  Nxe4 {[%clk 0:02:28]} 6. Re1 {[%clk 0:03:00]}  d5 {[%clk 0:02:28]} 7. Bxd5 {[%clk 0:03:00]}  Qxd5 {[%clk 0:02:29]} 8. Nc3 {[%clk 0:03:01]}  Qh5 {[%clk 0:02:28]} 9. Nxe4 {[%clk 0:03:01]}  Be6 {[%clk 0:02:28]} 10. Bg5 {[%clk 0:03:00]}  Be7 {[%clk 0:02:12]} 11. Bxe7 {[%clk 0:02:56]}  Nxe7 {[%clk 0:02:12]} 12. Nxd4 {[%clk 0:02:47]}  Qxd1 {[%clk 0:02:10]} 13. Raxd1 {[%clk 0:02:48]}  O-O-O {[%clk 0:01:33]} 14. Ng5 {[%clk 0:02:28]}  Nc6 {[%clk 0:00:33]} 15. Ngxe6 {[%clk 0:02:11]}  fxe6 {[%clk 0:00:32]} 16. Nxe6 {[%clk 0:02:03]}  Rxd1 {[%clk 0:00:30]} 17. Rxd1 {[%clk 0:02:04]}  Re8 {[%clk 0:00:16]} 18. Nxg7 {[%clk 0:01:30]}  Re2 {[%clk 0:00:16]} 19. Rc1 {[%clk 0:01:24]}  Nb4 {[%clk 0:00:16]} 20. Kf1 {[%clk 0:01:03]}  Rd2 {[%clk 0:00:14]} 21. Ke1 {[%clk 0:00:59]}  Rd7 {[%clk 0:00:11]} 22. Nf5 {[%clk 0:00:44]}  Nxa2 {[%clk 0:00:11]} 23. Rd1 {[%clk 0:00:41]}  Rf7 {[%clk 0:00:10]} 24. g4 {[%clk 0:00:37]}  Nb4 {[%clk 0:00:10]} 25. c3 {[%clk 0:00:34]}  Nc6 {[%clk 0:00:10]} 26. f4 {[%clk 0:00:29]}  a5 {[%clk 0:00:08]} 27. Kf2 {[%clk 0:00:26]}  b5 {[%clk 0:00:07]} 28. Kg3 {[%clk 0:00:25]}  Kb7 {[%clk 0:00:06]} 29. h4 {[%clk 0:00:18]}  a4 {[%clk 0:00:05]} 30. h5 {[%clk 0:00:19]}  Kb6 {[%clk 0:00:05]} 31. Ne3 {[%clk 0:00:15]}  Na5 {[%clk 0:00:04]} 32. Nd5+ {[%clk 0:00:14]}  Kc5 {[%clk 0:00:03]} 33. Nb4 {[%clk 0:00:09]}  Nc4 {[%clk 0:00:02]} 34. Rd5+ {[%clk 0:00:08]}  Kb6 {[%clk 0:00:02]} 35. Rg5 {[%clk 0:00:06]}  c5 {[%clk 0:00:02]} 36. Nd5+ {[%clk 0:00:06]}  Kc6 {[%clk 0:00:02]} 37. h6 {[%clk 0:00:05]}  Nxb2 {[%clk 0:00:02]} 38. Ne3 {[%clk 0:00:03]}  a3 {[%clk 0:00:01]} 39. Rg7 {[%clk 0:00:03]}  Rf6 {[%clk 0:00:01]} 40. Rxh7 {[%clk 0:00:02]}  b4 {[%clk 0:00:01]} 41. g5 {[%clk 0:00:02]}  b3 {[%clk 0:00:01]} 42. gxf6 {[%clk 0:00:02]}  a2 {[%clk 0:00:01]} 43. Ra7 {[%clk 0:00:02]}  Kb6 {[%clk 0:00:02]} 44. f7 {[%clk 0:00:03]}  Kxa7 {[%clk 0:00:01]} 45. f8=Q {[%clk 0:00:04]}  a1=Q {[%clk 0:00:01]} 46. Qxc5+ {[%clk 0:00:05]}  Ka6 {[%clk 0:00:00]} 47. Nd5 {[%clk 0:00:05]} 1-0


[Site "https://www.chess.com"]

[Event "Titled Tuesday Blitz June 13 Early 2023"]
[White "Mrudul Dehankar"]
[Black "Chakravarthi Reddy, M"]
[WhiteFideId "25096990"]
[BlackFideId "25009532"]
[WhiteElo "2139"]
[BlackElo "2201"]
[Result "1-0"]
[Round "10"]
[TimeControl "180+2"]
[Date "2023.06.13"]
[WhiteClock "0:00:12"]
[BlackClock "0:00:00"]
[Board "134"]

1. e4 {[%clk 0:02:53]}  c5 {[%clk 0:02:53]} 2. Nf3 {[%clk 0:02:52]}  d6 {[%clk 0:02:54]} 3. d4 {[%clk 0:02:51]}  cxd4 {[%clk 0:02:55]} 4. Nxd4 {[%clk 0:02:48]}  Nf6 {[%clk 0:02:55]} 5. Nc3 {[%clk 0:02:45]}  Nc6 {[%clk 0:02:55]} 6. Bg5 {[%clk 0:02:42]}  Bd7 {[%clk 0:02:55]} 7. Qd2 {[%clk 0:02:32]}  a6 {[%clk 0:02:53]} 8. O-O-O {[%clk 0:02:30]}  e6 {[%clk 0:02:53]} 9. f4 {[%clk 0:02:26]}  Be7 {[%clk 0:02:44]} 10. Nf3 {[%clk 0:02:22]}  b5 {[%clk 0:02:31]} 11. e5 {[%clk 0:02:03]}  b4 {[%clk 0:02:03]} 12. exf6 {[%clk 0:01:59]}  bxc3 {[%clk 0:01:54]} 13. Qxc3 {[%clk 0:01:58]}  gxf6 {[%clk 0:01:52]} 14. Bh4 {[%clk 0:01:55]}  Rg8 {[%clk 0:01:37]} 15. Kb1 {[%clk 0:01:47]}  d5 {[%clk 0:01:36]} 16. Qd3 {[%clk 0:01:35]}  Rg7 {[%clk 0:01:09]} 17. Be1 {[%clk 0:01:25]}  Na5 {[%clk 0:00:51]} 18. Nd4 {[%clk 0:01:15]}  Nc4 {[%clk 0:00:47]} 19. Qf3 {[%clk 0:01:03]}  Rc8 {[%clk 0:00:43]} 20. Bc3 {[%clk 0:00:51]}  Qb6 {[%clk 0:00:41]} 21. Bxc4 {[%clk 0:00:45]}  Rxc4 {[%clk 0:00:40]} 22. Rhe1 {[%clk 0:00:45]}  Bc5 {[%clk 0:00:32]} 23. Nf5 {[%clk 0:00:19]}  Rg6 {[%clk 0:00:32]} 24. Qxd5 {[%clk 0:00:15]}  Qb5 {[%clk 0:00:00]} 25. Qa8+ {[%clk 0:00:12]} 1-0


[Site "https://www.chess.com"]